bitfinex-derivatives/quotes_ETHF0:USTF0_20250114
["timestamp","ask_amount","ask_price","bid_price","bid_amount"]
[1736869757881,3.31331489,3206.0,3205.4,3.2078]
[1736869758082,0.78004,3206.1,3205.4,3.2078]
[1736869758083,0.31207,3205.5,3205.4,3.2078]
[1736869758880,0.31207,3205.5,3205.3,40.8]
[1736869759084,3.9879,3205.8,3205.4,0.31207]
[1736869759085,0.31205,3205.7,3205.4,0.31207]
[1736869759383,3.2078,3205.8,3205.7,0.31205]
[1736869759577,3.2078,3206.2,3205.7,2.71445321]
[1736869759795,0.31202,3206.0,3205.8,0.79223]
[1736869760076,0.77993,3206.5,3205.5,3.2078]
[1736869760077,3.41732514,3206.1,3205.5,3.2078]
[1736869760278,3.14281173,3205.9,3205.3,41.2802]
[1736869760486,0.31203,3205.9,3205.6,0.31205]
[1736869760686,0.31204,3205.8,3205.3,41.53275213]
[1736869760983,0.31204,3205.8,3205.6,0.31205]
[1736869761177,3.56438893,3206.1,3205.5,3.2078]
[1736869761384,0.31206,3205.6,3205.5,3.2078]
[1736869761775,0.31208,3205.4,3205.3,0.4802]
[1736869761972,3.39332856,3205.6,3205.1,3.2078]
[1736869761973,0.3121,3205.2,3205.1,3.2078]
[1736869762182,3.39332856,3205.4,3205.1,3.2078]
[1736869762485,0.31208,3205.4,3205.2,0.3121]
[1736869762979,3.29897155,3205.3,3205.2,0.3121]
[1736869763181,3.29897155,3205.3,3205.1,3.2078]
[1736869763484,0.3121,3205.2,3205.1,3.2078]
[1736869763673,3.29897155,3205.3,3205.1,3.2078]
[1736869763984,0.3121,3205.2,3205.1,3.2078]
[1736869764483,3.88075832,3205.2,3205.1,3.2078]
[1736869764885,3.88075832,3205.2,3204.7,1.25964]
[1736869764886,0.31213,3204.9,3204.7,1.25964]
[1736869765283,0.31212,3205.0,3204.7,0.9475]
[1736869765483,0.31208,3205.4,3205.1,0.31211]
[1736869765678,0.31208,3205.4,3205.2,0.31209]
[1736869765885,3.3926253,3205.3,3204.8,2.71445321]
[1736869766080,3.3926253,3205.3,3204.9,0.38210424]
[1736869766281,0.31209,3205.3,3204.8,2.71445321]
[1736869766587,0.31208,3205.4,3205.1,0.3121]
[1736869766791,0.31209,3205.3,3205.0,0.31211]
[1736869767092,3.86945341,3205.3,3205.1,0.3121]
[1736869767286,0.31209,3205.3,3205.1,0.3121]
[1736869768080,0.31208,3205.4,3204.8,2.71445321]
[1736869768288,3.2078,3205.7,3205.1,3.2078]
[1736869768491,3.88043021,3205.6,3205.3,0.31208]
[1736869768689,3.56837021,3205.6,3205.1,3.2078]
[1736869768879,0.31207,3205.5,3205.1,3.2078]
[1736869769186,3.88043021,3205.6,3205.4,0.31208]
[1736869769382,3.56837021,3205.6,3205.3,0.31208]
[1736869769583,3.88043021,3205.6,3205.2,0.3121]
[1736869769784,3.56837021,3205.6,3205.4,0.31208]
[1736869769988,3.56837021,3205.6,3205.5,0.31207]
[1736869770182,0.77994,3206.5,3205.9,0.31202]
[1736869770183,3.2078,3206.1,3205.9,0.31202]
[1736869770584,3.51981,3206.1,3205.9,41.11203]
[1736869770788,3.51981,3206.1,3205.9,0.31203]
[1736869771096,4.64464674,3238.8,3206.4,0.31197]
[1736869771097,0.4877,3206.7,3206.4,0.31197]
[1736869771286,5.92225321,3206.9,3206.4,0.31197]
[1736869771482,3.49721368,3206.5,3206.4,0.31197]
[1736869771685,3.49721368,3206.8,3206.7,0.31195]
[1736869771890,3.2078,3206.9,3206.7,0.31195]
[1736869772190,3.2078,3206.9,3206.6,2.71445321]
[1736869772394,3.2078,3206.9,3206.8,0.31194]
[1736869772588,3.2078,3206.9,3206.6,2.71445321]
[1736869772789,3.2078,3206.9,3206.7,0.31195]
[1736869773091,3.2078,3206.9,3206.4,4.1576]
[1736869773393,3.51974,3206.9,3206.6,0.31196]
[1736869773599,0.31194,3206.8,3206.4,4.46957]
[1736869773787,3.74891874,3206.8,3206.5,0.38222727]
[1736869773989,3.74891874,3206.8,3206.5,0.31197]
[1736869774395,3.74891874,3206.8,3206.4,4.1576]
[1736869774396,3.43696874,3206.8,3206.4,4.46958]
[1736869774689,3.98756,3207.3,3206.5,0.38209826]
[1736869774690,0.31195,3206.7,3206.5,0.38209826]
[1736869774897,0.31195,3206.7,3206.4,4.46958]
[1736869775084,3.24412452,3206.6,3206.5,0.38215759]
[1736869775694,3.24412452,3206.6,3206.4,4.1576]
[1736869775894,3.24412452,3206.6,3206.5,0.69409613]
[1736869776096,3.24412452,3206.6,3206.4,4.46958]
[1736869776897,3.24412452,3206.6,3206.4,4.1576]
[1736869777100,3.24412452,3206.6,3206.5,0.69399761]
[1736869777292,0.31192,3207.1,3206.7,0.31194]
[1736869777703,3.55152448,3206.9,3206.7,0.31194]
[1736869777904,3.55152448,3207.0,3206.8,0.31194]
[1736869778201,3.86343448,3207.1,3206.8,0.31194]
[1736869778404,3.86344448,3207.1,3206.7,0.31194]
[1736869778607,3.76162588,3207.2,3206.5,0.31197]
[1736869778904,3.44971588,3207.0,3206.8,0.31193]
[1736869779104,3.2078,3207.3,3206.9,3.02638321]
[1736869779405,0.4636,3207.5,3207.2,0.31189]
[1736869779906,3.60628736,3207.4,3207.3,0.31189]
[1736869780099,3.60628736,3207.4,3207.2,0.3119]
[1736869780297,3.91815736,3207.5,3207.1,0.31191]
[1736869780497,0.31187,3207.5,3207.1,0.31191]
[1736869780698,3.51869038,3207.6,3206.9,5.92225321]
[1736869780903,3.51869038,3207.4,3207.0,0.38149083]
[1736869781106,3.21285321,3207.7,3206.9,3.2078]
[1736869781307,4.75876038,3207.6,3206.9,3.2078]
[1736869781505,0.31191,3207.2,3206.9,3.51973]
[1736869782006,3.41515971,3207.5,3207.0,0.31191]
[1736869782212,3.41515971,3207.5,3206.9,3.2078]
[1736869782403,0.3119,3207.3,3206.9,3.51972]
[1736869782603,0.3119,3207.3,3207.0,0.31192]
[1736869782805,3.38650042,3207.2,3207.0,0.31192]
[1736869783711,3.38650042,3207.2,3207.1,0.31191]
[1736869783900,3.38650042,3207.2,3206.9,3.2078]
[1736869783901,0.4604,3207.6,3207.0,2.71445321]
[1736869784103,0.4604,3207.6,3207.3,0.31189]
[1736869784307,3.49150846,3207.5,3207.3,0.31189]
[1736869784505,0.31188,3207.4,3207.1,0.77961]
[1736869784812,3.49910993,3207.3,3207.1,0.77961]
[1736869785211,6.21356314,3207.3,3206.9,3.2078]
[1736869785409,0.31194,3206.8,3206.5,3.51976]
[1736869785615,0.31196,3206.6,3206.5,3.2078]
[1736869785811,3.58313692,3206.7,3206.5,3.2078]
[1736869786112,0.31194,3206.8,3206.6,0.31196]
[1736869786314,0.31194,3206.8,3206.5,3.51977]
[1736869786513,0.42583929,3206.7,3206.5,3.51977]
[1736869786715,0.42583929,3206.7,3206.5,3.2078]
[1736869786906,0.31196,3206.6,3206.5,3.2078]
[1736869788215,0.31198,3206.5,3206.3,0.4895]
[1736869788412,0.9704,3206.9,3206.1,3.2078]
[1736869788413,2.71445321,3206.4,3206.1,3.2078]
[1736869788607,0.312,3206.3,3206.1,3.2078]
[1736869788805,5.92225321,3207.0,3206.1,3.2078]
[1736869789017,0.31199,3206.4,3206.1,3.2078]
[1736869789217,0.77986,3206.8,3206.2,0.312]
[1736869789218,3.58856294,3206.5,3206.2,0.312]
[1736869789514,0.31198,3206.4,3206.2,0.312]
[1736869789709,0.31198,3206.4,3206.1,3.2078]
[1736869789710,3.26910745,3206.4,3206.3,0.31199]
[1736869789915,3.26910745,3206.7,3206.3,0.31199]
[1736869790214,3.26910745,3206.7,3206.2,0.4809]
[1736869790215,3.2078,3207.0,3206.9,0.31193]
[1736869791015,0.31191,3207.2,3206.9,0.31193]
[1736869791205,0.3119,3207.2,3206.6,0.77991]
[1736869791410,4.1688,3207.5,3206.9,3.2078]
[1736869791620,3.2078,3207.5,3207.0,3.49426321]
[1736869791815,3.28980026,3207.4,3207.3,0.31188]
[1736869792111,3.28980026,3207.4,3207.3,3.51968]
[1736869792309,3.673,3208.0,3207.3,5.92225321]
[1736869792513,0.31185,3207.8,3207.4,0.31187]
[1736869792717,3.91822228,3207.8,3207.3,3.2078]
[1736869792914,3.60637228,3207.9,3207.4,0.31188]
[1736869793216,0.31186,3207.7,3207.3,3.51968]
[1736869793419,3.60637228,3207.9,3207.3,3.2078]
[1736869793614,0.31186,3207.7,3207.3,3.51969]
[1736869793815,0.31188,3207.4,3207.3,3.2078]
[1736869794019,0.31188,3207.5,3207.1,0.31191]
[1736869794408,0.31191,3207.2,3207.0,0.4646]
[1736869794708,0.31191,3207.2,3206.9,3.51973]
[1736869794908,3.53921907,3207.1,3206.9,3.51973]
[1736869795318,3.53921907,3207.1,3206.9,3.2078]
[1736869795512,4.16746954,3207.2,3206.9,3.51973]
[1736869795819,4.16745954,3207.2,3206.9,3.51973]
[1736869796023,0.4652,3207.2,3206.9,3.2078]
[1736869796219,3.70227954,3207.1,3206.9,3.2078]
[1736869796520,0.31194,3206.9,3206.6,0.4689]
[1736869796711,0.31193,3207.0,3206.7,0.31195]
[1736869796916,0.31193,3207.0,3206.6,0.4689]
[1736869796917,3.41058194,3206.8,3206.6,41.58085]
[1736869797113,3.41058194,3206.9,3206.6,41.58085]
[1736869797415,3.17965321,3207.2,3206.6,41.2689]
[1736869797719,3.38172641,3206.9,3206.6,41.2689]
[1736869797917,0.31193,3207.0,3206.7,0.31194]
[1736869798119,0.31194,3206.8,3206.6,40.8]
[1736869798323,3.38172641,3206.9,3206.6,40.8]
[1736869798623,3.25245448,3207.0,3206.9,0.31193]
[1736869798822,3.2078,3207.2,3207.1,0.31191]
[1736869799027,0.31186,3207.7,3207.4,0.31188]
[1736869799214,2.71445321,3207.7,3206.9,0.4613]
[1736869799420,2.71445321,3207.7,3207.0,0.31192]
[1736869799421,3.56435448,3207.3,3207.0,0.31192]
[1736869799620,3.56435448,3207.3,3206.9,0.4613]
[1736869799621,0.31189,3207.4,3206.9,0.70583701]
[1736869799830,0.31189,3207.4,3207.0,0.69393923]
[1736869800020,3.37884649,3207.2,3207.1,0.31191]
[1736869800221,3.37884649,3207.3,3207.2,0.3119]
[1736869800422,3.37884649,3207.5,3207.2,0.69399235]
[1736869800623,0.9789,3207.9,3206.9,0.4613]
[1736869800818,3.49408321,3207.8,3207.0,0.38200277]
[1736869801024,6.29514853,3207.5,3206.8,3.2078]
[1736869801319,0.31189,3207.4,3206.9,0.38207453]
[1736869801521,3.89257532,3207.5,3207.2,0.3119]
[1736869801726,3.58069532,3207.5,3206.8,3.2078]
[1736869801923,0.31192,3207.0,3206.9,0.3820166]
[1736869802522,3.86056061,3207.0,3206.9,0.3820166]
[1736869802722,3.86056061,3207.0,3206.3,3.2078]
[1736869802723,0.31198,3206.4,3206.3,3.2078]
[1736869802926,2.71445321,3206.8,3206.3,3.2078]
[1736869803326,3.54864061,3206.7,3206.0,2.71445321]
[1736869803529,3.86059061,3206.7,3206.5,0.31197]
[1736869803828,3.3678539,3206.8,3206.1,3.2078]
[1736869804030,3.3678539,3206.6,3206.2,0.38203376]
[1736869804221,2.71445321,3206.5,3206.1,3.2078]
[1736869804423,2.71445321,3206.5,3205.9,0.4725]
[1736869804727,0.31201,3206.1,3206.0,0.38208631]
[1736869804922,3.28388473,3206.4,3204.9,3.2078]
[1736869804923,5.92225321,3206.2,3204.9,3.2078]
[1736869805232,15.59236,3207.9,3204.5,0.31216]
[1736869805233,0.31214,3204.8,3204.5,0.31216]
[1736869805525,3.2078,3204.9,3204.4,3.2078]
[1736869805727,3.28388473,3204.7,3204.6,0.31215]
[1736869805919,0.4655,3205.0,3204.4,3.45933445]
[1736869806118,0.4655,3205.0,3204.6,0.31215]
[1736869806321,0.4655,3205.0,3204.4,3.45933445]
[1736869806322,0.4655,3205.0,3204.4,3.2078]
[1736869806519,3.47612893,3204.9,3204.4,3.2078]
[1736869806916,0.77762,3205.0,3204.5,0.31216]
[1736869807120,0.4655,3205.0,3204.4,3.2078]
[1736869807325,3.47612893,3204.9,3204.7,0.31214]
[1736869807523,3.2078,3205.4,3204.4,5.92225321]
[1736869807728,3.73390481,3205.0,3204.4,3.2078]
[1736869808027,3.42178481,3205.3,3204.4,3.2078]
[1736869808220,0.31211,3205.1,3204.7,0.31214]
[1736869808417,3.42178481,3204.9,3204.4,3.2078]
[1736869808625,3.78217193,3205.0,3204.6,0.31215]
[1736869808821,3.2078,3205.4,3204.4,3.2078]
[1736869809017,3.47005193,3204.8,3204.4,3.2078]
[1736869809224,3.47005193,3204.9,3204.4,3.2078]
[1736869809422,3.2078,3205.4,3204.4,3.2078]
[1736869809624,3.55999447,3205.0,3204.4,3.2078]
[1736869809825,3.55999447,3205.1,3204.5,0.4798]
[1736869810125,3.2078,3205.4,3204.8,3.2078]
[1736869810331,0.31209,3205.3,3204.8,3.51993]
[1736869810530,3.52152397,3205.1,3204.8,3.2078]
[1736869810724,0.31215,3204.7,3204.5,0.4798]
[1736869811134,6.72932397,3205.0,3204.5,0.4798]
[1736869811435,3.2078,3205.0,3204.5,0.4798]
[1736869811639,3.26641237,3204.9,3204.8,0.31213]
[1736869811926,0.31211,3205.1,3204.7,0.31214]
[1736869812122,3.57851237,3205.2,3204.8,0.31213]
[1736869812318,3.2078,3205.4,3204.6,3.2078]
[1736869812530,3.2078,3205.4,3204.7,0.31214]
[1736869812531,3.65023577,3205.1,3204.7,0.31214]
[1736869812731,3.33812577,3205.1,3204.6,3.2078]
[1736869812933,0.31213,3204.9,3204.6,3.2078]
[1736869813128,0.31212,3205.0,3204.6,3.51995]
[1736869813329,3.33812577,3205.3,3204.6,3.2078]
[1736869813523,0.31216,3204.6,3204.3,40.8]
[1736869813732,0.31216,3204.6,3203.9,0.4844]
[1736869813733,3.29206934,3204.5,3203.9,0.4844]
[1736869813925,3.29206934,3204.5,3203.3,3.2078]
[1736869813926,6.49986934,3204.2,3203.3,3.2078]
[1736869814133,6.49986934,3204.2,3203.4,0.4844]
[1736869814323,6.49986934,3204.2,3203.3,3.2078]
[1736869814324,3.29206934,3203.5,3203.3,3.2078]
[1736869814530,0.31227,3203.4,3203.3,3.2078]
[1736869814726,3.90103095,3203.4,3203.3,3.2078]
[1736869816430,3.90103095,3203.4,3202.4,0.4844]
[1736869816431,3.58876095,3203.4,3202.9,3.2078]
[1736869816632,0.31228,3203.3,3202.9,3.2078]
[1736869816823,3.58876095,3203.4,3202.9,3.2078]
[1736869816824,0.31228,3203.4,3202.9,3.2078]
[1736869817135,3.33286916,3203.2,3202.9,3.2078]
[1736869817429,0.31228,3203.4,3202.9,3.2078]
[1736869817741,0.4692,3203.6,3202.9,3.2078]
[1736869817927,0.4692,3203.6,3203.0,0.3123]
[1736869818234,3.27923848,3203.5,3203.0,0.3123]
[1736869818435,0.31228,3203.3,3202.9,3.2078]
[1736869818630,3.27923848,3203.5,3202.9,3.2078]
[1736869818835,0.4692,3203.6,3202.9,3.2078]
[1736869818836,3.61504367,3203.2,3202.9,3.2078]
[1736869819031,3.2078,3203.8,3203.1,0.3123]
[1736869819231,3.2078,3203.8,3203.3,0.31228]
[1736869819428,3.61504367,3203.6,3203.2,0.5003]
[1736869819625,3.61504367,3203.7,3203.5,40.8]
[1736869819834,3.2078,3203.8,3203.5,41.11226]
[1736869820034,3.27959328,3203.7,3203.5,40.8]
[1736869820737,3.27959328,3203.7,3203.5,41.11226]
[1736869820937,3.27959328,3203.7,3203.5,40.8]
[1736869821627,0.31225,3203.6,3203.5,40.8]
[1736869821832,3.59184328,3203.7,3203.2,0.5003]
[1736869822131,3.40908981,3203.6,3203.5,0.31226]
[1736869822339,0.76975,3204.7,3204.1,0.3122]
[1736869822532,0.4576,3204.7,3204.3,0.31218]
[1736869822840,3.6621,3204.9,3204.2,3.29206934]
[1736869822841,3.57130144,3204.6,3204.2,3.29206934]
[1736869823032,3.2078,3204.9,3204.5,0.31216]
[1736869823527,3.2078,3204.9,3204.2,3.29206934]
[1736869823834,3.2078,3204.9,3204.3,0.31218]
[1736869824041,3.2078,3204.9,3204.2,3.29206934]
[1736869824338,3.2078,3204.9,3204.4,0.31217]
[1736869824539,3.51993,3204.9,3204.3,0.31217]
[1736869824734,3.37131781,3204.8,3204.2,0.25293129]
[1736869824935,3.2078,3204.9,3204.6,0.31215]
[1736869825140,3.2078,3204.9,3204.3,3.29206934]
[1736869825339,3.2078,3204.9,3204.4,0.4631]
[1736869825528,3.51993,3204.9,3204.4,0.4631]
[1736869825734,3.32920084,3204.8,3204.1,0.4966]
[1736869825935,0.31217,3204.5,3204.1,0.4966]
[1736869826430,3.32920084,3204.4,3204.1,0.4966]
[1736869826732,0.31218,3204.4,3204.1,0.4966]
[1736869827132,3.2078,3204.5,3203.6,3.6709]
[1736869827338,3.34874493,3204.3,3203.6,4.131]
[1736869827543,3.34874493,3204.4,3203.6,3.6679]
[1736869827742,0.31223,3203.9,3203.6,3.2078]
[1736869828342,3.28665098,3204.4,3203.6,3.2078]
[1736869828945,0.31223,3203.9,3203.6,3.2078]
[1736869829743,3.28665098,3204.4,3203.6,3.2078]
[1736869829938,0.31223,3203.8,3203.6,3.2078]
[1736869830150,3.2078,3204.1,3203.2,44.26040721]
[1736869830643,3.45875919,3204.0,3203.3,0.31228]
[1736869830945,0.31228,3203.4,3203.0,1.27261]
[1736869831151,0.31227,3203.5,3203.1,0.3123]
[1736869831341,0.31228,3203.4,3203.1,40.8]
[1736869831537,3.35723536,3203.4,3203.1,40.8]
[1736869831736,3.2078,3203.7,3203.1,40.8]
[1736869831941,0.4934,3203.9,3203.1,40.8]
[1736869832139,3.46440551,3203.6,3203.5,0.31226]
[1736869832343,3.46440551,3203.6,3203.3,3.2078]
[1736869832344,3.52001,3204.1,3203.7,0.31224]
[1736869832554,3.46440551,3204.0,3203.9,0.31222]
[1736869832749,0.31216,3204.6,3203.7,3.2078]
[1736869832948,0.31216,3204.6,3204.2,0.31219]
[1736869833151,3.31291962,3204.5,3203.8,0.9611]
[1736869833340,3.31291962,3204.5,3204.4,0.31217]
[1736869833543,3.2078,3204.8,3204.1,3.2078]
[1736869833847,3.51994,3204.8,3204.4,0.31217]
[1736869834045,3.51994,3204.8,3204.1,3.2078]
[1736869834247,3.51994,3204.8,3204.2,0.38168451]
[1736869834447,3.2078,3204.8,3204.3,0.38168451]
[1736869834750,3.51994,3204.8,3204.4,0.31217]
[1736869834946,3.2078,3204.8,3204.1,3.2078]
[1736869835145,3.31368073,3204.7,3204.2,0.3815841]
[1736869835450,0.31217,3204.5,3204.2,0.31219]
[1736869835637,3.31368073,3204.7,3204.1,3.2078]
[1736869835939,3.47973466,3204.4,3204.3,0.31218]
[1736869836139,0.31215,3204.7,3204.6,0.31216]
[1736869836140,3.47973466,3204.7,3204.6,0.31216]
[1736869836340,3.2078,3204.8,3204.6,0.31216]
[1736869836538,3.2078,3204.8,3204.1,6.49986934]
[1736869836739,3.2078,3204.8,3204.2,0.38152981]
[1736869836940,3.36975423,3204.7,3203.8,0.9611]
[1736869837145,0.31221,3204.0,3203.9,0.38162543]
[1736869837344,3.2078,3204.3,3203.8,0.9611]
[1736869837541,0.3122,3204.2,3203.9,0.31222]
[1736869837747,0.3122,3204.2,3203.8,0.9611]
[1736869837748,0.31221,3204.1,3203.8,0.9611]
[1736869838151,0.31221,3204.1,3203.8,1.27333]
[1736869838346,3.2078,3204.3,3203.8,1.27333]
[1736869838554,0.3122,3204.2,3203.8,1.27333]
[1736869838846,0.3122,3204.2,3203.8,0.9611]
[1736869839043,0.3122,3204.2,3203.8,1.27333]
[1736869839246,0.3122,3204.2,3203.8,0.9611]
[1736869839446,0.3122,3204.2,3203.8,1.27332]
[1736869839639,3.2078,3204.3,3203.9,0.31222]
[1736869839840,3.2078,3204.3,3203.8,0.9611]
[1736869840059,3.2078,3204.7,3203.9,0.38179509]
[1736869840241,0.31216,3204.6,3204.2,0.31219]
[1736869840445,3.31053076,3204.5,3204.2,0.31219]
[1736869840755,3.2078,3204.7,3204.2,0.31219]
[1736869841049,3.32437554,3204.4,3204.3,0.31218]
[1736869841255,0.31217,3204.5,3204.2,0.31219]
[1736869841448,3.2078,3204.7,3203.8,4.1689]
[1736869841649,0.31221,3204.0,3203.9,0.38182064]
[1736869841849,0.31221,3204.1,3203.8,3.99983]
[1736869842146,3.32437554,3204.0,3203.8,3.99983]
[1736869842348,3.2078,3204.7,3203.8,6.97966934]
[1736869842549,0.4723,3205.1,3204.3,0.31218]
[1736869842550,0.31216,3204.6,3204.3,0.31218]
[1736869842752,0.31216,3204.6,3203.9,1.16266293]
[1736869842753,3.61623827,3204.6,3203.9,0.78057]
[1736869843049,3.29206934,3204.6,3204.0,0.38200972]
[1736869843356,3.2078,3204.3,3203.8,0.4798]
[1736869843550,0.31222,3204.0,3203.9,0.3822016]
[1736869843755,0.31224,3203.8,3203.5,0.31226]
[1736869843955,0.31223,3203.9,3203.6,0.69452765]
[1736869844259,3.2078,3203.9,3203.3,44.72098557]
[1736869844549,0.31226,3203.5,3203.4,0.38230758]
[1736869844943,0.31226,3203.6,3203.4,0.38230758]
[1736869845257,3.2078,3204.1,3203.5,0.38218609]
[1736869845557,3.2078,3204.1,3203.6,0.38218609]
[1736869845748,0.7781,3204.2,3203.7,0.38218609]
[1736869845951,0.4659,3204.2,3204.0,0.31221]
[1736869846151,3.42480697,3204.1,3204.0,0.31221]
[1736869846449,3.2078,3204.5,3204.0,0.6942757]
[1736869846645,0.31216,3204.6,3204.3,0.31218]
[1736869846845,3.48966735,3204.4,3204.2,3.2078]
[1736869847052,3.48966735,3204.6,3204.5,0.31216]
[1736869847250,3.2078,3204.9,3204.5,0.38194402]
[1736869847450,3.2078,3204.9,3204.8,0.31214]
[1736869847755,3.2078,3204.9,3204.8,0.69398648]
[1736869848050,0.77569,3205.3,3204.9,0.31212]
[1736869848051,0.3121,3205.2,3204.9,0.31212]
[1736869848245,0.4636,3205.3,3204.9,0.31212]
[1736869848450,0.31209,3205.3,3205.0,0.31212]
[1736869848654,0.4701,3205.4,3204.7,3.2078]
[1736869848962,3.25573155,3205.3,3204.8,0.38175539]
[1736869849257,3.56782155,3205.3,3204.9,0.31212]
[1736869849449,3.25573155,3205.3,3204.8,0.31214]
[1736869849650,3.25573155,3205.3,3205.2,0.3121]
[1736869850151,3.2078,3205.7,3205.2,0.38151431]
[1736869850357,3.2078,3205.7,3205.1,3.2078]
[1736869850358,3.2078,3205.7,3205.5,0.31206]
[1736869850553,3.2078,3205.7,3205.6,0.31206]
[1736869850754,3.2078,3206.7,3205.6,44.47375528]
[1736869850953,0.9605,3207.1,3206.0,6.49986934]
[1736869851258,4.34678743,3207.1,3206.6,0.31196]
[1736869851456,0.31194,3206.8,3206.4,0.31198]
[1736869851960,0.31196,3206.6,3206.2,0.31199]
[1736869852266,0.31196,3206.7,3206.2,0.31199]
[1736869852556,4.25256934,3207.1,3206.1,0.4935]
[1736869852557,3.51195488,3206.9,3206.1,0.4935]
[1736869852754,3.33309923,3206.6,3206.1,0.80551]
[1736869853053,3.64506923,3206.6,3206.1,0.80551]
[1736869853352,5.03236934,3207.1,3206.1,0.4935]
[1736869853556,0.31196,3206.7,3206.2,0.312]
[1736869853855,3.26357719,3206.7,3206.6,0.31196]
[1736869854049,3.2078,3207.2,3206.4,3.2078]
[1736869854250,3.2078,3207.2,3206.8,0.31194]
[1736869854551,3.2078,3207.2,3206.7,0.31195]
[1736869854747,3.2078,3207.2,3206.5,0.4781]
[1736869855047,3.2078,3207.2,3206.9,0.31193]
[1736869855450,3.2078,3207.2,3206.5,0.72961769]
[1736869855451,3.2078,3207.2,3206.8,0.31194]
[1736869855654,3.2078,3207.2,3206.9,0.31192]
[1736869855855,3.2078,3207.2,3206.8,0.31194]
[1736869856061,3.2078,3207.2,3206.9,0.31193]
[1736869856260,3.2078,3207.2,3206.6,40.8]
[1736869856562,3.2078,3207.2,3206.8,0.31194]
[1736869856960,3.2078,3207.2,3206.9,0.31193]
[1736869857162,3.2078,3207.7,3207.3,0.31189]
[1736869857367,3.2078,3207.7,3207.4,0.31188]
[1736869857757,3.2078,3207.7,3207.1,3.2078]
[1736869858161,6.78891746,3207.6,3207.1,3.2078]
[1736869858663,0.31187,3207.5,3207.1,3.2078]
[1736869858863,6.78891746,3207.6,3207.1,3.2078]
[1736869859062,3.2078,3207.3,3206.7,3.2078]
[1736869859260,0.31191,3207.2,3206.7,3.2078]
[1736869859460,0.31192,3207.1,3206.7,3.2078]
[1736869859963,0.31191,3207.1,3206.7,3.2078]
[1736869860159,6.49986934,3207.3,3206.7,3.2078]
[1736869860160,3.56165245,3207.0,3206.7,3.2078]
[1736869860359,3.56165245,3207.0,3206.5,0.4781]
[1736869860360,0.31194,3206.9,3206.5,0.4781]
[1736869860562,3.56165245,3207.1,3206.7,3.51975]
[1736869860862,3.56165245,3207.2,3207.1,0.31191]
[1736869861075,3.2078,3207.7,3207.2,0.3119]
[1736869861258,3.2078,3207.7,3206.9,3.29206934]
[1736869861459,3.2078,3207.7,3207.6,0.31186]
[1736869861667,3.2078,3207.7,3207.3,0.31189]
[1736869861865,3.2078,3207.7,3207.2,3.2078]
[1736869862167,3.2078,3207.7,3207.3,0.31189]
[1736869862367,3.2078,3207.7,3207.2,3.2078]
[1736869862578,3.2078,3207.7,3207.5,0.31187]
[1736869862974,0.31183,3208.0,3207.5,0.31187]
[1736869863263,3.2078,3208.1,3207.2,3.2078]
[1736869863466,0.31183,3208.0,3207.5,0.31187]
[1736869863773,0.31183,3208.0,3207.4,0.31188]
[1736869864269,0.31183,3208.0,3207.5,0.31187]
[1736869864563,3.2078,3208.1,3206.9,4.07189934]
[1736869864564,3.2078,3208.1,3207.7,0.31185]
[1736869864766,0.31181,3208.2,3207.8,0.31184]
[1736869864970,1.2812,3208.3,3207.9,0.31183]
[1736869865158,1.2812,3208.3,3207.7,40.8]
[1736869865159,0.9694,3208.3,3207.7,41.2548]
[1736869865569,0.9694,3208.3,3207.6,3.2078]
[1736869865570,3.41240998,3208.2,3207.6,3.2078]
[1736869866073,0.7944,3208.3,3207.9,0.31183]
[1736869866371,0.31181,3208.1,3207.8,0.31184]
[1736869866561,0.31182,3208.1,3207.7,41.59605]
[1736869866767,0.31184,3207.9,3207.2,3.2078]
[1736869866972,0.31184,3207.9,3207.5,0.31187]
[1736869867567,6.75964079,3208.2,3207.3,40.8]
[1736869867972,0.31184,3207.9,3207.4,0.31187]
[1736869868173,0.31186,3207.7,3207.3,41.11189]
[1736869868476,0.31185,3207.8,3207.4,0.31188]
[1736869868677,0.31184,3207.9,3207.4,0.31188]
[1736869868973,0.31189,3207.3,3207.2,3.2078]
[1736869869174,0.3119,3207.3,3206.9,0.31193]
[1736869869375,3.2078,3207.4,3206.7,41.2603]
[1736869869572,0.31194,3206.8,3206.7,40.8]
[1736869869770,3.2078,3207.0,3206.5,0.4652]
[1736869869971,3.30549964,3206.8,3206.5,0.4652]
[1736869870273,3.07953399,3206.9,3206.6,40.8]
[1736869870471,0.31195,3206.7,3206.6,40.8]
[1736869870676,0.31196,3206.7,3206.3,0.31199]
[1736869870876,0.31196,3206.6,3206.2,0.31199]
[1736869871177,0.31196,3206.6,3206.1,0.4788]
[1736869871178,0.31197,3206.5,3206.3,40.8]
[1736869871375,0.31198,3206.5,3206.3,40.8]
[1736869872378,0.31201,3206.1,3206.0,0.4603]
[1736869872678,0.4521,3207.2,3205.5,3.2078]
[1736869872679,3.2078,3206.2,3205.5,3.2078]
[1736869872880,3.2078,3205.8,3204.7,3.2078]
[1736869873179,6.49986934,3205.2,3204.3,3.2078]
[1736869873385,0.31213,3204.9,3204.4,41.11217]
[1736869873676,3.2078,3204.8,3204.2,0.4788]
[1736869873879,9.78918864,3204.8,3203.9,8.26603395]
[1736869874073,0.31219,3204.3,3204.0,0.38029253]
[1736869874382,3.2893193,3204.2,3203.9,3.2078]
[1736869874577,3.2893193,3204.2,3204.0,0.38053547]
[1736869874773,3.2078,3204.8,3203.9,3.2078]
[1736869874977,0.31216,3204.6,3204.0,0.31221]
[1736869875175,3.6438379,3204.6,3203.9,3.2078]
[1736869875480,0.31216,3204.6,3204.0,0.31221]
[1736869875676,0.31216,3204.6,3203.9,3.2078]
[1736869875677,3.3316779,3204.5,3203.9,3.2078]
[1736869875987,3.30485631,3204.7,3204.2,0.31219]
[1736869876180,3.61700631,3204.7,3203.9,3.2078]